[Event "Torneo Nuevo Centro. Jornada 10"]
[Site "Chess.com"]
[Date "2020.08.21"]
[Round "1"]
[White "Vicent Lázaro, Elena"]
[Black "Gracia Calvo, Andrés"]
[Result "0-1"]
[WhiteElo "656"]
[BlackElo "1815"]
[TimeControl "180+2"]
[EndTime "10:32:45 PDT"]
[Termination "Victoria de andresjaque21 por jaque mate"]

1. e3 {[%clk 0:02:53.8]} 1... d5 {[%clk 0:03:00.3]} 2. c4 {[%clk 0:02:52.7]}
2... c6 {[%clk 0:03:00.8]} 3. Nc3 {[%clk 0:02:51.3]} 3... e6 {[%clk 0:03:00]} 4.
Bd3 {[%clk 0:02:49.8]} 4... f5 {[%clk 0:03:00.6]} 5. Bb1 {[%clk 0:02:51.6]} 5...
Nf6 {[%clk 0:03:01]} 6. Qc2 {[%clk 0:02:53.5]} 6... Bd6 {[%clk 0:03:01.4]} 7. g4
{[%clk 0:02:54]} 7... g6 {[%clk 0:02:54.9]} 8. Nh3 {[%clk 0:02:52.6]} 8... fxg4
{[%clk 0:02:50.6]} 9. Ng1 {[%clk 0:02:50.7]} 9... Nbd7 {[%clk 0:02:48.8]} 10. f3
{[%clk 0:02:48.3]} 10... Ne5 {[%clk 0:02:43.6]} 11. fxg4 {[%clk 0:02:48]} 11...
Nfxg4 {[%clk 0:02:39.2]} 12. Nh3 {[%clk 0:02:48.1]} 12... Qh4+ {[%clk
0:02:38.9]} 13. Nf2 {[%clk 0:02:36]} 13... Qxf2+ {[%clk 0:02:38]} 14. Kd1 {[%clk
0:02:36.5]} 14... Qf3+ {[%clk 0:02:30]} 15. Ke1 {[%clk 0:02:35.1]} 15... Qxh1+
{[%clk 0:02:29.9]} 16. Ke2 {[%clk 0:02:35.1]} 16... Qxh2+ {[%clk 0:02:28]} 17.
Kf1 {[%clk 0:02:31.2]} 17... Qf2# {[%clk 0:02:27.3]} 0

[Event "Torneo Nuevo Centro. Jornada 10"]
[Site "Chess.com"]
[Date "2020.08.21"]
[Round "1"]
[White "Fitzpatrick Dimas, Kevin"]
[Black "Hassomal Daswani, Birjkumar"]
[Result "0-1"]
[WhiteElo "856"]
[BlackElo "1838"]
[TimeControl "180+2"]
[EndTime "10:33:34 PDT"]
[Termination "Victoria de daz000007 por abandono"]

1. e4 {[%clk 0:02:59.8]} 1... c5 {[%clk 0:03:00.5]} 2. Bc4 {[%clk 0:02:49.4]}
2... e6 {[%clk 0:03:01.1]} 3. Nf3 {[%clk 0:02:47.8]} 3... a6 {[%clk 0:03:01.9]}
4. O-O {[%clk 0:02:45.1]} 4... b5 {[%clk 0:03:01.9]} 5. Bd3 {[%clk 0:02:38.4]}
5... Bb7 {[%clk 0:02:59.6]} 6. c4 {[%clk 0:02:36]} 6... b4 {[%clk 0:03:00.3]} 7.
a3 {[%clk 0:02:33.1]} 7... a5 {[%clk 0:02:59.3]} 8. axb4 {[%clk 0:02:32.4]} 8...
axb4 {[%clk 0:02:59.8]} 9. Rxa8 {[%clk 0:02:32.4]} 9... Bxa8 {[%clk 0:03:00.1]}
10. Qa4 {[%clk 0:02:30.4]} 10... Nc6 {[%clk 0:02:58.8]} 11. e5 {[%clk
0:02:23.8]} 11... Nge7 {[%clk 0:02:54]} 12. h3 {[%clk 0:02:18.9]} 12... Ng6
{[%clk 0:02:54.2]} 13. Qb5 {[%clk 0:02:07.5]} 13... Ngxe5 {[%clk 0:02:22.6]} 14.
Nxe5 {[%clk 0:02:01.6]} 14... Nxe5 {[%clk 0:02:23.2]} 15. Qxc5 {[%clk
0:01:46.2]} 15... Bxc5 {[%clk 0:02:22.9]} 0

[Event "Torneo Nuevo Centro. Jornada 10"]
[Site "Chess.com"]
[Date "2020.08.21"]
[Round "1"]
[White "Salvador Buiza, Victor"]
[Black "Ainsa Jimenez, Lucas"]
[Result "1-0"]
[WhiteElo "1882"]
[BlackElo "1149"]
[TimeControl "180+2"]
[EndTime "10:33:36 PDT"]
[Termination "Victoria de TERROROSCURO666 por jaque mate"]

1. e4 {[%clk 0:02:59.5]} 1... e5 {[%clk 0:02:58.8]} 2. Nf3 {[%clk 0:02:58.9]}
2... Nc6 {[%clk 0:02:58.9]} 3. Bc4 {[%clk 0:02:59.6]} 3... Bc5 {[%clk
0:02:57.5]} 4. d3 {[%clk 0:03:00.2]} 4... Nf6 {[%clk 0:02:54.4]} 5. Be3 {[%clk
0:03:00.2]} 5... Bxe3 {[%clk 0:02:53.6]} 6. fxe3 {[%clk 0:03:00.8]} 6... d6
{[%clk 0:02:53.3]} 7. O-O {[%clk 0:02:59.1]} 7... h6 {[%clk 0:02:47.4]} 8. Nc3
{[%clk 0:02:59.2]} 8... O-O {[%clk 0:02:45.4]} 9. d4 {[%clk 0:03:00]} 9... exd4
{[%clk 0:02:44.2]} 10. exd4 {[%clk 0:03:00.8]} 10... Na5 {[%clk 0:02:39.4]} 11.
Bd3 {[%clk 0:02:58]} 11... d5 {[%clk 0:02:38.7]} 12. exd5 {[%clk 0:02:48.9]}
12... Nxd5 {[%clk 0:02:38.1]} 13. Nxd5 {[%clk 0:02:49.8]} 13... Qxd5 {[%clk
0:02:37.3]} 14. Ne5 {[%clk 0:02:50.8]} 14... Qxd4+ {[%clk 0:02:31.1]} 15. Kh1
{[%clk 0:02:51.7]} 15... Qxe5 {[%clk 0:02:30.1]} 16. Qd2 {[%clk 0:02:47.1]}
16... Nc6 {[%clk 0:02:25.1]} 17. c3 {[%clk 0:02:42.4]} 17... Re8 {[%clk
0:02:19.2]} 18. Rae1 {[%clk 0:02:39.4]} 18... Qd5 {[%clk 0:01:38.3]} 19. Rxe8#
{[%clk 0:02:35.7]} 1

[Event "Torneo Nuevo Centro. Jornada 10"]
[Site "Chess.com"]
[Date "2020.08.21"]
[Round "1"]
[White "Perrot, Fabien "]
[Black "Montesinos Diaz, Luis"]
[Result "0-1"]
[WhiteElo "1126"]
[BlackElo "1871"]
[TimeControl "180+2"]
[EndTime "10:33:54 PDT"]
[Termination "Victoria de Gwiso_06 por abandono"]

1. d4 {[%clk 0:02:59.3]} 1... Nf6 {[%clk 0:02:57.9]} 2. c4 {[%clk 0:02:59.4]}
2... g6 {[%clk 0:02:58.8]} 3. Nc3 {[%clk 0:03:00.6]} 3... Bg7 {[%clk 0:03:00.1]}
4. Bg5 {[%clk 0:02:59.8]} 4... O-O {[%clk 0:03:00]} 5. e4 {[%clk 0:02:58]} 5...
d6 {[%clk 0:03:01]} 6. g3 {[%clk 0:02:52.9]} 6... Nc6 {[%clk 0:03:01.2]} 7. Bg2
{[%clk 0:02:51.1]} 7... e5 {[%clk 0:03:02.1]} 8. d5 {[%clk 0:02:44.3]} 8... Ne7
{[%clk 0:03:02.8]} 9. Qb3 {[%clk 0:02:40.3]} 9... h6 {[%clk 0:02:59.4]} 10. Bxf6
{[%clk 0:02:38.7]} 10... Bxf6 {[%clk 0:03:01.3]} 11. Nge2 {[%clk 0:02:29.3]}
11... Bg7 {[%clk 0:03:00.2]} 12. O-O {[%clk 0:02:29.7]} 12... f5 {[%clk
0:03:00.9]} 13. Rad1 {[%clk 0:02:19.5]} 13... f4 {[%clk 0:02:57.5]} 14. gxf4
{[%clk 0:02:18]} 14... exf4 {[%clk 0:02:57.6]} 15. Bf3 {[%clk 0:02:01.9]} 15...
g5 {[%clk 0:02:50.2]} 16. Nb1 {[%clk 0:01:49.6]} 16... g4 {[%clk 0:02:49.8]} 17.
Bh1 {[%clk 0:01:50.4]} 17... Ng6 {[%clk 0:02:47.8]} 18. Na3 {[%clk 0:01:41.3]}
18... Qg5 {[%clk 0:02:47]} 19. Qd3 {[%clk 0:01:28.5]} 19... Ne5 {[%clk
0:02:44.8]} 20. Qc3 {[%clk 0:01:24.7]} 20... Nf3+ {[%clk 0:02:44.7]} 0

[Event "Torneo Nuevo Centro. Jornada 10"]
[Site "Chess.com"]
[Date "2020.08.21"]
[Round "1"]
[White "Granero Roca, Antonio"]
[Black "Ledezma Fortes, Jose Manuel"]
[Result "1-0"]
[WhiteElo "2519"]
[BlackElo "1794"]
[TimeControl "180+2"]
[EndTime "10:34:21 PDT"]
[Termination "Victoria de Somtor por abandono"]

1. Nf3 {[%clk 0:02:59.9]} 1... c6 {[%clk 0:02:59.6]} 2. g3 {[%clk 0:03:00.8]}
2... d5 {[%clk 0:02:59.3]} 3. Bg2 {[%clk 0:03:01.5]} 3... Bf5 {[%clk 0:02:58]}
4. d3 {[%clk 0:03:01.3]} 4... Nd7 {[%clk 0:02:57.9]} 5. O-O {[%clk 0:03:02]}
5... h6 {[%clk 0:02:58]} 6. Nbd2 {[%clk 0:03:02.6]} 6... e6 {[%clk 0:02:57.3]}
7. c4 {[%clk 0:03:03.3]} 7... Ne7 {[%clk 0:02:55.8]} 8. b3 {[%clk 0:03:04.1]}
8... Bh7 {[%clk 0:02:53.7]} 9. Bb2 {[%clk 0:03:04.8]} 9... Nf5 {[%clk
0:02:49.3]} 10. Qc2 {[%clk 0:03:04.7]} 10... dxc4 {[%clk 0:02:45.7]} 11. Nxc4
{[%clk 0:03:04.5]} 11... Nb6 {[%clk 0:02:43.4]} 12. Rad1 {[%clk 0:02:50.7]}
12... Qc7 {[%clk 0:02:26.4]} 13. a3 {[%clk 0:02:43.7]} 13... O-O-O {[%clk
0:02:18.6]} 14. b4 {[%clk 0:02:44.4]} 14... Nxc4 {[%clk 0:02:17.3]} 15. Qxc4
{[%clk 0:02:44.8]} 15... Nd6 {[%clk 0:02:14.3]} 16. Qb3 {[%clk 0:02:43.5]} 16...
f6 {[%clk 0:02:14.7]} 17. Rc1 {[%clk 0:02:43.3]} 17... e5 {[%clk 0:02:14.3]} 18.
a4 {[%clk 0:02:41.1]} 18... e4 {[%clk 0:02:13.9]} 19. Nd4 {[%clk 0:02:36.3]}
19... exd3 {[%clk 0:02:13.8]} 20. exd3 {[%clk 0:02:25]} 20... Nf5 {[%clk
0:02:09.6]} 21. Nxc6 {[%clk 0:02:19.7]} 21... Nxg3 {[%clk 0:01:47.6]} 22. hxg3
{[%clk 0:02:16.8]} 22... bxc6 {[%clk 0:01:45]} 23. Rxc6 {[%clk 0:02:16.4]} 23...
Rxd3 {[%clk 0:01:45.3]} 24. Rxc7+ {[%clk 0:02:14.7]} 24... Kxc7 {[%clk
0:01:45.9]} 25. Qc4+ {[%clk 0:02:15.5]} 1

[Event "Torneo Nuevo Centro. Jornada 10"]
[Site "Chess.com"]
[Date "2020.08.21"]
[Round "1"]
[White "Hernández Tomás, Efrén"]
[Black "Orts Tomás, Marc"]
[Result "0-1"]
[WhiteElo "1085"]
[BlackElo "1859"]
[TimeControl "180+2"]
[EndTime "10:34:38 PDT"]
[Termination "Victoria de Rock-Bishop29 por abandono"]

1. e4 {[%clk 0:03:00.6]} 1... c5 {[%clk 0:03:00.4]} 2. Nf3 {[%clk 0:03:01]} 2...
Nc6 {[%clk 0:02:57.7]} 3. Bc4 {[%clk 0:03:01.1]} 3... e5 {[%clk 0:02:53.5]} 4.
Nc3 {[%clk 0:02:55.7]} 4... Be7 {[%clk 0:02:51.2]} 5. d3 {[%clk 0:02:47.9]} 5...
Nd4 {[%clk 0:02:53.1]} 6. Nxe5 {[%clk 0:02:44.7]} 6... Nf6 {[%clk 0:02:44.1]} 7.
Nxf7 {[%clk 0:02:42.3]} 7... Qa5 {[%clk 0:02:39.1]} 8. Nxh8 {[%clk 0:02:40.8]}
8... b5 {[%clk 0:02:39.8]} 9. Bd5 {[%clk 0:02:30.6]} 9... Nxd5 {[%clk
0:02:38.5]} 10. exd5 {[%clk 0:02:29]} 10... b4 {[%clk 0:02:27.5]} 11. Ne4 {[%clk
0:02:25.4]} 11... b3+ {[%clk 0:02:27]} 12. Bd2 {[%clk 0:02:22.3]} 12... Nxc2+
{[%clk 0:02:05.9]} 13. Ke2 {[%clk 0:02:10.8]} 13... Qa6 {[%clk 0:02:03.3]} 14.
Rc1 {[%clk 0:02:01.8]} 14... Nd4+ {[%clk 0:02:03.8]} 15. Kf1 {[%clk 0:01:53]}
15... bxa2 {[%clk 0:02:03.8]} 16. Ra1 {[%clk 0:01:49]} 16... Qxd3+ {[%clk
0:01:54.1]} 17. Kg1 {[%clk 0:01:44.1]} 17... Ne2+ {[%clk 0:01:46.8]} 18. Kf1
{[%clk 0:01:42.3]} 18... Nc3+ {[%clk 0:01:47.5]} 0

[Event "Torneo Nuevo Centro. Jornada 10"]
[Site "Chess.com"]
[Date "2020.08.21"]
[Round "1"]
[White "Fenollar Jorda, Manolo"]
[Black "Donate Moreno, Silvia"]
[Result "1-0"]
[WhiteElo "2472"]
[BlackElo "1769"]
[TimeControl "180+2"]
[EndTime "10:34:39 PDT"]
[Termination "Victoria de Cucudrulu por abandono"]

1. d4 {[%clk 0:03:01.4]} 1... Nf6 {[%clk 0:03:00.9]} 2. Nf3 {[%clk 0:03:01.2]}
2... g6 {[%clk 0:03:01.5]} 3. Bg5 {[%clk 0:03:02.3]} 3... Bg7 {[%clk 0:03:02.5]}
4. Nbd2 {[%clk 0:03:03.9]} 4... d5 {[%clk 0:03:01.9]} 5. e3 {[%clk 0:03:04]}
5... O-O {[%clk 0:03:02.2]} 6. c3 {[%clk 0:03:04]} 6... c6 {[%clk 0:03:03.1]} 7.
a4 {[%clk 0:03:00.1]} 7... Bg4 {[%clk 0:03:03.6]} 8. Qc2 {[%clk 0:02:56.5]} 8...
h6 {[%clk 0:03:00.7]} 9. Bh4 {[%clk 0:02:55.2]} 9... Bxf3 {[%clk 0:02:59.5]} 10.
Nxf3 {[%clk 0:02:55]} 10... g5 {[%clk 0:02:58.5]} 11. Bg3 {[%clk 0:02:55.6]}
11... Ne4 {[%clk 0:02:59.5]} 12. Bd3 {[%clk 0:02:56]} 12... Nxg3 {[%clk
0:02:59.2]} 13. hxg3 {[%clk 0:02:57.9]} 13... Nd7 {[%clk 0:03:00.3]} 14. Nxg5
{[%clk 0:02:47.3]} 14... e5 {[%clk 0:02:57.3]} 15. Nh3 {[%clk 0:02:37]} 15... e4
{[%clk 0:02:57.5]} 16. Be2 {[%clk 0:02:37.8]} 16... Rc8 {[%clk 0:02:44]} 17. Nf4
{[%clk 0:02:36.6]} 17... Re8 {[%clk 0:02:41.7]} 18. O-O {[%clk 0:02:36.5]} 18...
Qg5 {[%clk 0:02:36.1]} 19. b4 {[%clk 0:02:36.6]} 19... a6 {[%clk 0:02:36]} 20.
Qb3 {[%clk 0:02:34.9]} 20... Nf6 {[%clk 0:02:27.2]} 21. Rac1 {[%clk 0:02:27.7]}
21... Ng4 {[%clk 0:02:25.7]} 22. b5 {[%clk 0:02:20.3]} 22... axb5 {[%clk
0:02:25.7]} 23. axb5 {[%clk 0:02:20.9]} 23... h5 {[%clk 0:02:20]} 24. c4 {[%clk
0:02:16.2]} 24... dxc4 {[%clk 0:02:14.3]} 25. Bxc4 {[%clk 0:02:12]} 25... Re7
{[%clk 0:02:12.4]} 26. bxc6 {[%clk 0:02:05.9]} 26... bxc6 {[%clk 0:02:12.5]} 27.
Be2 {[%clk 0:01:54.1]} 27... h4 {[%clk 0:02:08.2]} 28. Rc5 {[%clk 0:01:54.5]}
1

[Event "Torneo Nuevo Centro. Jornada 10"]
[Site "Chess.com"]
[Date "2020.08.21"]
[Round "1"]
[White "Roca Cruz, Rafael"]
[Black "Fitzpatrick Dimas  , Andrew "]
[Result "1-0"]
[WhiteElo "1851"]
[BlackElo "1056"]
[TimeControl "180+2"]
[EndTime "10:35:07 PDT"]
[Termination "Victoria de RafaRocaCruz por jaque mate"]

1. d4 {[%clk 0:03:01.7]} 1... d5 {[%clk 0:02:40.3]} 2. c4 {[%clk 0:03:02]} 2...
dxc4 {[%clk 0:02:39.8]} 3. Nf3 {[%clk 0:03:02.4]} 3... Nc6 {[%clk 0:02:38.4]} 4.
e3 {[%clk 0:03:03]} 4... b5 {[%clk 0:02:38]} 5. a4 {[%clk 0:03:03.5]} 5... Ba6
{[%clk 0:02:35.6]} 6. axb5 {[%clk 0:03:01.3]} 6... Bxb5 {[%clk 0:02:34.9]} 7. b3
{[%clk 0:03:02.3]} 7... Qd5 {[%clk 0:02:24.9]} 8. Nc3 {[%clk 0:03:01.3]} 8...
Qe6 {[%clk 0:02:11.7]} 9. Nxb5 {[%clk 0:03:00]} 9... Kd7 {[%clk 0:02:08.7]} 10.
bxc4 {[%clk 0:02:34]} 10... a6 {[%clk 0:01:59.6]} 11. d5 {[%clk 0:02:32.6]}
11... Qe5 {[%clk 0:01:58.1]} 12. dxc6+ {[%clk 0:02:33.1]} 12... Kc8 {[%clk
0:01:53.2]} 13. Qd4 {[%clk 0:02:25.5]} 13... Qxd4 {[%clk 0:01:48.6]} 14. Nbxd4
{[%clk 0:02:25.1]} 14... f6 {[%clk 0:01:46]} 15. Ba3 {[%clk 0:02:22.1]} 15...
Nh6 {[%clk 0:01:40.2]} 16. Ne6 {[%clk 0:02:16.2]} 16... Nf5 {[%clk 0:01:35.9]}
17. g3 {[%clk 0:01:50.6]} 17... Nd6 {[%clk 0:01:23.9]} 18. Bh3 {[%clk
0:01:41.1]} 18... Kb8 {[%clk 0:01:21.2]} 19. Rb1+ {[%clk 0:01:40.1]} 19... Ka7
{[%clk 0:01:08.9]} 20. Bc5# {[%clk 0:01:40.2]} 1

[Event "Torneo Nuevo Centro. Jornada 10"]
[Site "Chess.com"]
[Date "2020.08.21"]
[Round "1"]
[White "Gutierrez Marco, Dario"]
[Black "Rabbani Perez, Oumaima "]
[Result "1-0"]
[WhiteElo "1822"]
[BlackElo "690"]
[TimeControl "180+2"]
[EndTime "10:35:12 PDT"]
[Termination "Victoria de rususs por jaque mate"]

1. e4 {[%clk 0:02:57.1]} 1... e5 {[%clk 0:02:58.8]} 2. Nf3 {[%clk 0:02:56]} 2...
Nf6 {[%clk 0:02:58.1]} 3. Nxe5 {[%clk 0:02:56.1]} 3... Nxe4 {[%clk 0:02:50.8]}
4. Qe2 {[%clk 0:02:29.4]} 4... Ng5 {[%clk 0:02:43.8]} 5. Nc6+ {[%clk 0:02:26.3]}
5... Be7 {[%clk 0:02:42.3]} 6. Nxd8 {[%clk 0:02:26]} 6... Kxd8 {[%clk
0:02:40.4]} 7. d4 {[%clk 0:02:21.6]} 7... Nc6 {[%clk 0:02:33.5]} 8. c3 {[%clk
0:02:20.7]} 8... Na5 {[%clk 0:02:25.3]} 9. g3 {[%clk 0:02:17.3]} 9... b6 {[%clk
0:02:18.1]} 10. Bg2 {[%clk 0:02:17.3]} 10... Nc6 {[%clk 0:02:16.6]} 11. d5
{[%clk 0:02:15.8]} 11... Nb8 {[%clk 0:02:15.9]} 12. d6 {[%clk 0:02:16.8]} 12...
cxd6 {[%clk 0:02:12.4]} 13. Bxa8 {[%clk 0:02:17.3]} 13... Ba6 {[%clk 0:02:02.5]}
14. Qg4 {[%clk 0:02:13.7]} 14... Bc4 {[%clk 0:01:47.5]} 15. Bxg5 {[%clk
0:02:13.1]} 15... Bxg5 {[%clk 0:01:45.1]} 16. Qxg5+ {[%clk 0:02:15]} 16... Kc8
{[%clk 0:01:45]} 17. Nd2 {[%clk 0:02:12.2]} 17... Bd3 {[%clk 0:01:35.7]} 18.
O-O-O {[%clk 0:02:07.5]} 18... Be2 {[%clk 0:01:33.3]} 19. Rde1 {[%clk
0:02:07.7]} 19... Bd3 {[%clk 0:01:27.9]} 20. Qxg7 {[%clk 0:02:07.5]} 20... Rd8
{[%clk 0:01:24.8]} 21. Qxf7 {[%clk 0:02:07.2]} 21... Na6 {[%clk 0:01:23.2]} 22.
Re8 {[%clk 0:02:06.4]} 22... Rxe8 {[%clk 0:01:20.4]} 23. Qxe8+ {[%clk
0:02:08.3]} 23... Kc7 {[%clk 0:01:20.3]} 24. Re1 {[%clk 0:02:06]} 24... Bb5
{[%clk 0:01:09.6]} 25. c4 {[%clk 0:02:05]} 25... Bc6 {[%clk 0:01:05.6]} 26. Bxc6
{[%clk 0:02:06.3]} 26... dxc6 {[%clk 0:01:04.9]} 27. Re7# {[%clk 0:02:07.5]} 1

[Event "Torneo Nuevo Centro. Jornada 10"]
[Site "Chess.com"]
[Date "2020.08.21"]
[Round "1"]
[White "Martínez Escandell, Alfonso"]
[Black "Valverde Alcaide, Miguel Alejandro"]
[Result "1-0"]
[WhiteElo "1840"]
[BlackElo "892"]
[TimeControl "180+2"]
[EndTime "10:35:54 PDT"]
[Termination "Victoria de Alfonso10 por jaque mate"]

1. e4 {[%clk 0:03:01.9]} 1... e5 {[%clk 0:02:56.9]} 2. Nf3 {[%clk 0:03:02]} 2...
Qe7 {[%clk 0:02:52.6]} 3. Bc4 {[%clk 0:02:59.8]} 3... Nh6 {[%clk 0:02:51.1]} 4.
d3 {[%clk 0:02:59.6]} 4... d6 {[%clk 0:02:49.2]} 5. Bxh6 {[%clk 0:02:56.4]} 5...
gxh6 {[%clk 0:02:47.7]} 6. Qd2 {[%clk 0:02:56.6]} 6... Nc6 {[%clk 0:02:42.1]} 7.
Nc3 {[%clk 0:02:56.6]} 7... Nb4 {[%clk 0:02:40]} 8. a3 {[%clk 0:02:55.8]} 8...
d5 {[%clk 0:02:36.9]} 9. Nxd5 {[%clk 0:02:53.7]} 9... Nxd5 {[%clk 0:02:36.7]}
10. Bxd5 {[%clk 0:02:54.7]} 10... c6 {[%clk 0:02:24.1]} 11. Bb3 {[%clk
0:02:52.7]} 11... Bg4 {[%clk 0:02:22.8]} 12. Qe3 {[%clk 0:02:52.3]} 12... O-O-O
{[%clk 0:02:20.5]} 13. h3 {[%clk 0:02:50.7]} 13... Bxf3 {[%clk 0:02:20.4]} 14.
Qxf3 {[%clk 0:02:52.6]} 14... f6 {[%clk 0:02:20.3]} 15. O-O-O {[%clk 0:02:51]}
15... Bg7 {[%clk 0:02:17.9]} 16. g4 {[%clk 0:02:46.8]} 16... Qc5 {[%clk
0:02:09.8]} 17. Kb1 {[%clk 0:02:44.4]} 17... b6 {[%clk 0:02:06.4]} 18. h4 {[%clk
0:02:41.1]} 18... Kb7 {[%clk 0:01:57]} 19. Qf5 {[%clk 0:02:17.9]} 19... Rd4
{[%clk 0:01:49.3]} 20. f4 {[%clk 0:02:13.1]} 20... a5 {[%clk 0:01:45]} 21. fxe5
{[%clk 0:02:10]} 21... fxe5 {[%clk 0:01:38.4]} 22. Qf7+ {[%clk 0:02:10.3]} 22...
Kc8 {[%clk 0:01:16.6]} 23. Qxg7 {[%clk 0:02:08.9]} 23... Rdd8 {[%clk 0:01:11.3]}
24. Rhf1 {[%clk 0:02:04.1]} 24... a4 {[%clk 0:00:59.7]} 25. Be6+ {[%clk
0:01:57.2]} 25... Kb8 {[%clk 0:00:59]} 26. Rf7 {[%clk 0:01:57.4]} 26... Rhf8
{[%clk 0:00:45.4]} 27. Rb7+ {[%clk 0:01:57.2]} 27... Ka8 {[%clk 0:00:43.1]} 28.
Ra7+ {[%clk 0:01:59.1]} 28... Kb8 {[%clk 0:00:41.1]} 29. Qb7# {[%clk 0:02:01]}
1

[Event "Torneo Nuevo Centro. Jornada 10"]
[Site "Chess.com"]
[Date "2020.08.21"]
[Round "1"]
[White "Rausell Taberner, Diego"]
[Black "Sampedro Roig, Josep Francesc"]
[Result "0-1"]
[WhiteElo "609"]
[BlackElo "1813"]
[TimeControl "180+2"]
[EndTime "10:36:12 PDT"]
[Termination "Victoria de Abrekurios por jaque mate"]

1. e4 {[%clk 0:03:00.3]} 1... Nf6 {[%clk 0:03:00.4]} 2. Nc3 {[%clk 0:03:00.4]}
2... d5 {[%clk 0:03:01.1]} 3. exd5 {[%clk 0:02:45.8]} 3... Nxd5 {[%clk
0:03:01.7]} 4. Bc4 {[%clk 0:02:45.8]} 4... Nb6 {[%clk 0:03:00.9]} 5. Bb3 {[%clk
0:02:33.4]} 5... c5 {[%clk 0:03:01.5]} 6. Ba4+ {[%clk 0:02:24.5]} 6... Nxa4
{[%clk 0:02:59.2]} 7. Nxa4 {[%clk 0:02:19]} 7... e5 {[%clk 0:02:59.4]} 8. d3
{[%clk 0:02:15.3]} 8... Be7 {[%clk 0:02:56.2]} 9. Nf3 {[%clk 0:02:05.4]} 9...
Nc6 {[%clk 0:02:56.6]} 10. O-O {[%clk 0:02:00.7]} 10... O-O {[%clk 0:02:56.6]}
11. Be3 {[%clk 0:01:54.6]} 11... b6 {[%clk 0:02:50.9]} 12. Nc3 {[%clk 0:01:49]}
12... Bg4 {[%clk 0:02:46.8]} 13. h3 {[%clk 0:01:32.6]} 13... Bh5 {[%clk
0:02:47.1]} 14. Ne4 {[%clk 0:01:15.1]} 14... f5 {[%clk 0:02:41.3]} 15. Ned2
{[%clk 0:01:03.8]} 15... f4 {[%clk 0:02:31.2]} 16. Bxf4 {[%clk 0:00:52.4]} 16...
exf4 {[%clk 0:02:31.6]} 17. Ne4 {[%clk 0:00:45.4]} 17... Nd4 {[%clk 0:02:28.4]}
18. c3 {[%clk 0:00:36]} 18... Nxf3+ {[%clk 0:02:21.5]} 19. gxf3 {[%clk
0:00:36.1]} 19... Qd7 {[%clk 0:02:08.1]} 20. Kh1 {[%clk 0:00:23.9]} 20... Qxh3+
{[%clk 0:02:07.1]} 21. Kg1 {[%clk 0:00:20.2]} 21... Bxf3 {[%clk 0:02:07.8]} 22.
Qxf3 {[%clk 0:00:17.5]} 22... Qxf3 {[%clk 0:02:08.2]} 23. Kh2 {[%clk 0:00:15.1]}
23... Rf6 {[%clk 0:02:07.8]} 24. Nxf6+ {[%clk 0:00:14.6]} 24... Bxf6 {[%clk
0:02:08.3]} 25. Kg1 {[%clk 0:00:14.6]} 25... Qg4+ {[%clk 0:02:06.1]} 26. Kh2
{[%clk 0:00:15.9]} 26... f3 {[%clk 0:02:06.7]} 27. Kh1 {[%clk 0:00:16.7]} 27...
Qh3+ {[%clk 0:02:07.3]} 28. Kg1 {[%clk 0:00:17.6]} 28... Qg2# {[%clk 0:02:08.5]}
0

[Event "Torneo Nuevo Centro. Jornada 10"]
[Site "Chess.com"]
[Date "2020.08.21"]
[Round "1"]
[White "Mancebo Ibanez, Fernando"]
[Black "Fente Fernandez, Jose Ignacio"]
[Result "1-0"]
[WhiteElo "2123"]
[BlackElo "1527"]
[TimeControl "180+2"]
[EndTime "10:36:14 PDT"]
[Termination "Victoria de Ferval64 por abandono"]

1. d4 {[%clk 0:02:59.5]} 1... Nf6 {[%clk 0:03:00.3]} 2. c4 {[%clk 0:02:53.9]}
2... g6 {[%clk 0:03:00.1]} 3. Nc3 {[%clk 0:02:54.9]} 3... d5 {[%clk 0:02:57.6]}
4. cxd5 {[%clk 0:02:55.3]} 4... Nxd5 {[%clk 0:02:58.1]} 5. e4 {[%clk 0:02:56.9]}
5... Nxc3 {[%clk 0:02:35.2]} 6. bxc3 {[%clk 0:02:58]} 6... Bg7 {[%clk
0:02:35.2]} 7. Ba3 {[%clk 0:02:58.7]} 7... O-O {[%clk 0:02:34.6]} 8. Bc4 {[%clk
0:02:59.5]} 8... Na6 {[%clk 0:02:32.1]} 9. Nf3 {[%clk 0:02:57.3]} 9... c5 {[%clk
0:02:32.1]} 10. Bxa6 {[%clk 0:02:44.3]} 10... bxa6 {[%clk 0:02:24]} 11. Bxc5
{[%clk 0:02:43.6]} 11... Bg4 {[%clk 0:02:13.6]} 12. O-O {[%clk 0:02:40.7]} 12...
Qa5 {[%clk 0:01:49]} 13. Bxe7 {[%clk 0:02:35.4]} 13... Rfe8 {[%clk 0:01:42]} 14.
Bb4 {[%clk 0:02:36]} 14... Qh5 {[%clk 0:01:39.5]} 15. h3 {[%clk 0:02:27]} 15...
Bxf3 {[%clk 0:01:38.7]} 16. Qxf3 {[%clk 0:02:27.8]} 16... Qxf3 {[%clk
0:01:38.3]} 17. gxf3 {[%clk 0:02:29]} 17... a5 {[%clk 0:01:37.7]} 18. Bxa5
{[%clk 0:02:23]} 18... Rac8 {[%clk 0:01:37.7]} 19. Rab1 {[%clk 0:02:14.5]} 19...
Re6 {[%clk 0:01:22.7]} 20. Rfc1 {[%clk 0:01:28.6]} 20... Ra6 {[%clk 0:01:13.1]}
21. Rb5 {[%clk 0:01:28.3]} 21... Bxd4 {[%clk 0:01:07.6]} 22. Rd5 {[%clk
0:01:18.8]} 22... Bg7 {[%clk 0:00:55.5]} 23. Rc2 {[%clk 0:01:09.8]} 23... Rd6
{[%clk 0:00:45.2]} 1